bitfinex/quotes_ETHUSD_20240730
["timestamp","ask_amount","ask_price","bid_price","bid_amount"]
[1722348280155,3.00066,3332.6,3332.5,0.08869094]
[1722348280354,3.00066,3332.6,3331.9,2.4558]
[1722348280561,3.00017,3333.2,3332.2,3.00096]
[1722348280859,2.99989,3333.5,3332.3,0.08880359]
[1722348281046,3.00084,3332.4,3332.3,0.08880359]
[1722348281243,0.55,3333.2,3331.3,2.6487]
[1722348281244,3.00121,3332.0,3331.3,2.6487]
[1722348281444,3.00102,3332.2,3331.3,2.3477]
[1722348281672,3.00075,3332.5,3331.4,0.32389041]
[1722348281845,3.00126,3332.0,3331.4,0.32389041]
[1722348282034,3.00148,3331.7,3331.4,0.32389041]
[1722348282357,6.0033,3331.5,3331.4,0.08912041]
[1722348282744,6.0033,3331.5,3330.7,9.7316]
[1722348282745,3.00189,3331.3,3330.7,9.7316]
[1722348282945,3.00203,3331.1,3330.7,2.3616]
[1722348283172,3.0,3331.5,3330.8,0.08933172]
[1722348283473,3.00206,3331.1,3330.8,0.08933172]
[1722348283691,3.0019,3331.3,3330.8,0.08933172]
[1722348283890,3.00165,3331.5,3330.5,3.00248]
[1722348284038,3.0,3331.7,3330.3,0.300278]
[1722348284039,3.0021,3331.0,3330.9,0.08929649]
[1722348284242,3.5086957,3331.9,3330.3,0.300278]
[1722348284436,0.55,3331.8,3330.3,0.300278]
[1722348284636,3.00219,3330.9,3330.4,0.08947263]
[1722348284900,3.00219,3330.9,3330.4,0.36655769]
[1722348285188,6.00412,3331.1,3330.4,0.36655769]
[1722348285341,6.00149,3331.7,3330.7,3.00236]
[1722348285537,3.0,3331.8,3331.0,3.00208]
[1722348285739,3.0,3331.8,3330.4,10.73915769]
[1722348285740,7.47,3332.7,3331.1,5.43244]
[1722348286002,3.00097,3332.3,3331.2,0.543244]
[1722348286286,3.00113,3332.1,3331.3,0.08915562]
[1722348286487,3.00127,3332.0,3331.3,0.08915562]
[1722348286684,3.0013,3331.9,3331.3,0.08915562]
[1722348286897,3.00113,3332.1,3331.3,0.08915562]
[1722348287040,3.00135,3331.9,3331.3,0.39544558]
[1722348287386,3.00147,3331.7,3331.3,0.39544558]
[1722348287589,3.00114,3332.1,3331.3,0.39544558]
[1722348287899,3.00114,3332.1,3331.3,0.30628996]
[1722348288196,3.00086,3332.4,3331.5,3.00164]
[1722348288496,3.00072,3332.6,3331.6,3.39099201]
[1722348288636,3.0,3332.5,3331.6,3.39099201]
[1722348288840,6.00057,3332.7,3331.6,0.38952201]
[1722348289036,3.00051,3332.8,3331.9,3.00124]
[1722348289285,3.00048,3332.8,3332.0,2.4705]
[1722348289457,3.00048,3332.8,3332.1,0.547174]
[1722348289649,3.0003,3333.0,3332.1,0.547174]
[1722348289650,3.00031,3333.0,3332.1,3.548234]
[1722348289977,3.00021,3333.1,3332.2,0.08949995]
[1722348290182,2.99989,3333.5,3332.3,3.00087]
[1722348290410,2.99951,3333.9,3332.4,3.00082]
[1722348290536,0.5086957,3334.1,3332.5,3.600909]
[1722348290537,2.99995,3333.4,3332.5,3.600909]
[1722348290903,2.99962,3333.8,3332.6,0.39035919]
[1722348291094,2.99962,3333.8,3332.7,5.34871]
[1722348291241,2.99962,3333.8,3332.7,2.3482]
[1722348291438,2.99962,3333.8,3332.8,0.08912579]
[1722348291762,0.5086957,3334.1,3332.9,0.54378358]
[1722348291960,2.9994,3334.0,3333.1,3.00015]
[1722348292251,2.9994,3334.0,3333.2,0.08887038]
[1722348292653,0.5086957,3334.1,3333.0,3.00028]
[1722348292654,2.9995,3333.9,3333.0,3.00028]
[1722348292837,2.9995,3333.9,3332.8,3.00045]
[1722348292838,2.99945,3334.0,3333.3,0.08872054]
[1722348293065,2.99945,3334.0,3333.0,3.00023]
[1722348293304,2.99943,3334.0,3333.4,0.08868537]
[1722348293505,2.99949,3333.9,3333.1,0.300023]
[1722348293814,2.99941,3334.0,3333.1,0.300023]
[1722348294133,2.99939,3334.1,3333.2,0.08875572]
[1722348294259,2.99904,3334.4,3333.6,2.3401]
[1722348294464,2.99924,3334.2,3333.6,2.3401]
[1722348294663,2.99924,3334.2,3333.7,0.08853764]
[1722348294907,2.99946,3334.0,3333.7,0.08853764]
[1722348295108,2.99932,3334.1,3333.7,0.08853764]
[1722348295310,2.99932,3334.1,3333.6,2.3401]
[1722348295311,2.99938,3334.1,3333.6,2.3401]
[1722348295491,2.99955,3333.9,3333.6,2.3401]
[1722348295698,2.99955,3333.9,3333.7,0.08847428]
[1722348295925,2.99924,3334.2,3333.7,0.08847428]
[1722348296126,2.99924,3334.2,3333.7,0.24285743]
[1722348296413,2.99924,3334.2,3333.8,0.08843912]
[1722348296580,2.99924,3334.2,3333.6,2.3401]
[1722348296581,2.99922,3334.2,3333.6,2.3401]
[1722348296767,2.99931,3334.1,3333.6,2.3401]
[1722348296971,2.99906,3334.4,3333.7,0.08847428]
[1722348297213,2.9986,3334.9,3333.7,0.33133171]
[1722348297512,2.99914,3334.3,3333.7,0.33133171]
[1722348298098,2.99898,3334.5,3333.7,0.33133171]
[1722348298619,2.99895,3334.5,3333.7,0.33133171]
[1722348298902,2.999,3334.5,3333.7,0.33133171]
[1722348299108,2.999,3334.5,3333.8,0.56711417]
[1722348299480,2.9988,3334.7,3333.9,0.08759203]
[1722348299683,2.99842,3335.1,3334.0,2.99939]
[1722348299984,2.99878,3334.7,3333.7,0.24285743]
[1722348300182,2.99883,3334.7,3333.7,3.24251743]
[1722348300531,2.99883,3334.7,3333.8,3.08711592]
[1722348300745,2.99892,3334.6,3333.9,0.86697334]
[1722348301045,2.99899,3334.5,3334.0,0.0875056]
[1722348301246,2.99899,3334.5,3333.6,2.3401]
[1722348301403,2.99881,3334.7,3333.6,5.33977]
[1722348301599,2.99915,3334.3,3333.4,5.99992]
[1722348301827,3.179,3335.0,3333.5,0.08752922]
[1722348301828,6.17843,3334.0,3333.5,0.08752922]
[1722348302011,2.99976,3333.6,3332.7,2.3259]
[1722348302230,2.99956,3333.9,3332.7,5.32646]
[1722348302431,2.99963,3333.8,3332.8,3.08518481]
[1722348302612,3.0,3334.4,3333.3,3.00002]
[1722348302613,5.9991,3334.4,3333.3,3.00002]
[1722348302815,2.99913,3334.3,3333.4,0.38450576]
[1722348303015,3.179,3335.0,3333.4,0.38450576]
[1722348303340,3.179,3335.0,3333.4,0.08450376]
[1722348303341,2.99944,3334.0,3333.4,0.08450376]
[1722348303547,3.179,3334.5,3333.4,0.08450376]
[1722348303714,2.99936,3334.1,3332.7,5.3259]
[1722348303917,2.99913,3334.3,3333.5,0.08446859]
[1722348304158,2.99927,3334.2,3333.3,2.99995]
[1722348304453,3.55,3334.9,3333.3,2.99995]
[1722348304454,2.99908,3334.4,3333.7,2.2696]
[1722348304597,2.99898,3334.5,3333.7,2.2696]
[1722348304598,2.99901,3334.5,3333.7,2.2696]
[1722348304800,3.55,3334.9,3333.8,0.0843631]
[1722348304997,2.99917,3334.3,3333.8,0.0843631]
[1722348305240,6.54859,3334.9,3333.2,2.4435]
[1722348305458,6.54859,3334.9,3333.5,2.99979]
[1722348305459,2.99907,3334.4,3333.5,2.99979]
[1722348305741,2.99882,3334.7,3333.6,2.99968]
[1722348305897,2.99869,3334.8,3333.9,2.99948]
[1722348306102,2.99873,3334.8,3333.6,0.08449978]
[1722348306301,3.179,3335.5,3334.0,0.08430182]
[1722348306614,2.99899,3334.5,3334.1,0.08426667]
[1722348306828,2.99882,3334.7,3333.7,3.30808798]
[1722348307154,2.99833,3335.2,3333.8,0.08437214]
[1722348307155,2.99887,3334.6,3333.8,0.08437214]
[1722348307353,2.99887,3334.6,3333.8,3.08394214]
[1722348307651,2.99874,3334.8,3333.9,0.63920501]
[1722348307860,2.99878,3334.7,3334.0,0.08430182]
[1722348308264,2.99877,3334.7,3334.0,0.08430182]
[1722348308763,2.99883,3334.7,3334.0,0.08430182]
[1722348309663,5.99824,3335.3,3334.0,0.08430182]
[1722348309983,2.99886,3334.6,3334.0,0.4235308]
[1722348310152,3.916054,3335.2,3334.0,0.08430182]
[1722348310352,2.99877,3334.7,3334.0,0.08430182]
[1722348310590,2.99877,3334.7,3333.8,2.99957]
[1722348310887,6.17707,3335.5,3333.7,0.30842798]
[1722348311048,2.998,3335.6,3333.9,0.08419525]
[1722348311238,2.99794,3335.7,3334.6,2.4831]
[1722348311441,2.99778,3335.8,3334.9,2.99858]
[1722348311767,2.9977,3335.9,3335.0,0.14377017]
[1722348311969,6.17616,3336.5,3335.0,0.14377017]
[1722348311970,6.17616,3336.5,3335.0,3.14222017]
[1722348312154,2.99733,3336.3,3335.0,0.69654815]
[1722348312354,2.99795,3335.7,3335.0,0.69654815]
[1722348312584,2.99805,3335.5,3335.0,0.69654815]
[1722348312884,2.99802,3335.6,3335.0,0.08380863]
[1722348313083,2.99744,3336.2,3335.0,0.08380863]
[1722348313084,2.99792,3335.7,3335.0,0.08380863]
[1722348313238,2.99797,3335.6,3334.6,5.48187]
[1722348313439,2.99797,3335.6,3334.7,0.08391405]
[1722348313792,5.99569,3335.8,3334.8,3.61520675]
[1722348313937,5.99744,3336.2,3334.8,0.55657841]
[1722348313938,2.99803,3335.6,3334.8,0.55657841]
[1722348314143,2.99767,3336.0,3334.9,0.14380212]
[1722348314357,2.99796,3335.6,3334.9,0.08384377]
[1722348314591,2.9984,3335.2,3334.9,0.08384377]
[1722348314899,3.0,3336.3,3334.6,2.4831]
[1722348314900,2.9985,3335.0,3334.6,2.4831]
[1722348315100,2.99864,3334.9,3334.0,2.2594]
[1722348315399,2.99881,3334.7,3334.0,2.2594]
[1722348315569,2.99844,3335.1,3334.0,2.2594]
[1722348315753,2.99915,3334.3,3334.0,2.2594]
[1722348316122,5.99853,3335.0,3334.1,3.05928107]
[1722348316123,3.0,3335.0,3334.1,3.05928107]
[1722348316259,2.99796,3335.6,3334.5,2.99889]
[1722348316457,3.0,3335.7,3334.6,3.05877429]
[1722348316458,2.99808,3335.5,3334.6,3.05877429]
[1722348316793,2.99808,3335.5,3334.5,2.99889]
[1722348316995,2.99808,3335.5,3334.5,2.99888]
[1722348317301,2.99791,3335.7,3334.9,2.4585]
[1722348317602,5.99586,3335.7,3334.9,2.4585]
[1722348317895,2.99769,3335.9,3335.0,3.05844881]
[1722348318067,2.99769,3335.9,3335.0,3.05839881]
[1722348318068,5.99545,3335.9,3335.0,3.05839881]
[1722348318260,2.9976,3336.0,3335.0,0.05995881]
[1722348318460,2.9976,3336.0,3335.1,3.58015288]
[1722348318685,2.99769,3335.9,3335.2,0.05995398]
[1722348318890,2.99787,3335.7,3335.1,0.58180288]
[1722348319071,2.99778,3335.8,3334.9,5.75801]
[1722348319274,2.99772,3335.9,3334.9,2.4585]
[1722348319457,2.99803,3335.6,3334.9,2.4585]
[1722348319661,2.99829,3335.3,3334.9,2.4585]
[1722348319984,2.99847,3335.1,3334.3,2.3927]
[1722348320317,2.99859,3334.9,3334.4,0.539195]
[1722348320530,2.99859,3334.9,3334.3,2.3927]
[1722348320806,2.99872,3334.8,3334.3,2.3927]
[1722348321020,2.99851,3335.0,3334.3,2.3927]
[1722348321174,3.0,3335.4,3334.0,0.22594]
[1722348321381,2.99835,3335.2,3333.8,7.37]
[1722348321671,2.99888,3334.6,3333.8,7.37]
[1722348321932,2.99908,3334.4,3333.8,7.37]
[1722348322216,2.99892,3334.6,3333.9,0.05998384]
[1722348322503,5.9985,3335.0,3333.9,0.05998384]
[1722348322504,3.0,3335.0,3333.9,0.05998384]
[1722348322713,3.0,3335.0,3333.8,7.37]
[1722348322714,2.99931,3334.1,3333.8,7.37]
[1722348322874,2.99931,3334.1,3334.0,0.08370489]
[1722348323061,2.99931,3334.1,3333.9,0.08374005]
[1722348323403,2.99913,3334.3,3333.7,2.2523]
[1722348323602,2.99898,3334.5,3333.8,0.05998346]
[1722348323760,2.99881,3334.7,3333.9,0.23122835]
[1722348323960,3.0,3335.0,3334.0,0.05997639]
[1722348324220,5.99863,3334.9,3334.0,0.08370489]
[1722348324361,2.99855,3335.0,3334.1,0.05997356]
[1722348324716,2.99832,3335.2,3334.2,3.14276426]
[1722348325022,2.99837,3335.2,3334.3,0.37424456]
[1722348325184,2.99823,3335.3,3334.3,3.31332643]
[1722348325382,2.99793,3335.7,3334.5,2.3878]
[1722348325689,2.99793,3335.7,3334.7,2.99876]
[1722348325912,2.99793,3335.7,3334.8,3.05857744]
[1722348326063,2.99793,3335.7,3334.9,0.31423096]
[1722348326264,2.99793,3335.7,3335.0,0.14337417]
[1722348326863,2.99793,3335.7,3335.0,0.08341672]
[1722348326995,2.99778,3335.8,3335.1,0.05995649]
[1722348327372,2.99807,3335.5,3335.2,0.08334042]
[1722348327711,2.99807,3335.5,3334.5,5.38669]
[1722348327712,2.99807,3335.5,3334.7,7.37]
[1722348327876,2.99788,3335.7,3335.3,0.08320885]
[1722348328079,2.99788,3335.7,3334.9,0.05995652]
[1722348328432,2.99773,3335.9,3335.0,2.99842]
[1722348328586,5.9955,3335.9,3335.1,0.05995428]
[1722348328787,0.25,3336.0,3335.1,0.08323693]
[1722348328788,2.99797,3335.6,3335.1,0.08323693]
[1722348329125,2.99832,3335.2,3334.7,7.37]
[1722348329270,2.99788,3335.7,3335.2,0.08020223]
[1722348329619,2.99788,3335.7,3334.7,7.37]
[1722348329620,2.99837,3335.2,3334.7,7.37]
[1722348329785,2.99836,3335.2,3334.7,7.37]
[1722348329989,2.99817,3335.4,3334.7,7.37]
[1722348330323,2.99799,3335.6,3334.8,0.97578]
[1722348330504,2.99806,3335.5,3334.8,0.97578]
[1722348330809,2.99815,3335.4,3334.8,0.97578]
[1722348331013,2.99833,3335.2,3334.8,0.97578]
[1722348331424,2.99817,3335.4,3334.8,0.97578]
[1722348331626,2.99817,3335.4,3334.9,0.834578]
[1722348332432,2.99783,3335.8,3334.9,0.834578]
[1722348332722,2.998,3335.6,3334.9,0.834578]
[1722348332932,2.9981,3335.5,3334.9,0.834578]
[1722348333417,3.0,3335.7,3334.9,0.834578]
[1722348333618,5.99791,3335.7,3335.0,1.1203338]
[1722348333912,2.998,3335.6,3335.0,1.1203338]
[1722348334321,3.0,3335.7,3335.0,1.1203338]
[1722348334471,2.99791,3335.7,3335.0,1.1203338]
[1722348334811,3.24765,3336.0,3335.0,1.1203338]
[1722348334812,0.25,3336.0,3335.1,3.05830767]
[1722348335123,0.25,3336.0,3335.2,0.44796415]
[1722348335323,2.99773,3335.9,3335.3,0.05995444]
[1722348335504,5.99549,3335.9,3335.3,0.05995444]
[1722348335705,2.99779,3335.8,3335.3,0.05995444]
[1722348335888,0.25,3336.0,3335.3,0.05995444]
[1722348336433,0.25,3336.0,3335.4,0.30582444]
[1722348336578,3.24768,3336.0,3335.5,0.05995447]
[1722348336772,2.99769,3335.9,3335.5,0.05995447]
[1722348337100,2.99779,3335.8,3335.1,0.05995447]
[1722348337300,2.99769,3335.9,3335.1,3.05834447]
[1722348337875,2.99809,3335.5,3335.2,0.15592028]
[1722348338075,2.99775,3335.9,3335.0,1.1203338]
[1722348338379,0.25,3336.0,3335.1,3.56128413]
[1722348338581,2.99784,3335.8,3335.1,0.56288413]
[1722348339114,2.99794,3335.7,3335.1,0.56288413]
[1722348339678,0.25,3336.0,3335.2,0.05995744]
[1722348339872,3.24765,3336.0,3335.3,0.15077893]
[1722348340097,0.25,3336.0,3335.4,3.07409649]
[1722348340318,0.25,3336.0,3335.4,3.22487688]
[1722348340522,3.2476,3336.0,3335.4,3.16492236]
[1722348340725,0.25,3336.0,3335.4,3.16492236]
[1722348341815,3.24764,3336.0,3335.4,3.16492236]
[1722348342015,0.25,3336.0,3335.5,0.31649224]
[1722348342235,0.25,3336.0,3335.6,0.05995024]
[1722348342539,0.25,3336.0,3335.6,0.21058709]
[1722348344920,3.24768,3336.0,3335.6,0.15063685]
[1722348345092,0.25,3336.0,3335.6,0.15063685]
[1722348345298,0.25,3336.0,3335.6,0.79858196]
[1722348346379,0.25,3336.0,3335.7,0.05995036]
[1722348346779,0.25,3336.0,3335.8,0.15050229]
[1722348348412,0.25,3336.0,3335.6,0.05995034]
[1722348348581,0.25,3336.0,3335.9,0.1504918]
[1722348348785,0.25,3336.0,3335.9,0.38075933]
[1722348349032,0.25,3336.0,3335.9,0.53125113]
[1722348349205,0.25,3336.0,3335.9,0.47130901]
[1722348349426,2.99689,3336.8,3335.9,0.47130901]
[1722348349811,2.99708,3336.6,3335.9,0.47130901]
[1722348350011,2.99708,3336.6,3336.0,0.3469079]
[1722348350243,2.99697,3336.7,3336.0,0.3469079]
[1722348350447,2.99697,3336.7,3336.1,0.15017196]
[1722348350945,2.99709,3336.6,3336.1,0.15017196]
[1722348351316,2.99697,3336.7,3336.1,0.15017196]
[1722348351548,2.99697,3336.7,3336.2,0.34947199]
[1722348352058,2.99702,3336.7,3336.3,0.15004043]
[1722348352235,2.99707,3336.6,3336.3,0.15004043]
[1722348352554,2.99704,3336.7,3335.8,2.99772]
[1722348352707,2.99704,3336.7,3336.4,0.15000305]
[1722348352909,2.99704,3336.7,3335.9,0.629661]
[1722348352910,2.99697,3336.7,3335.9,0.629661]
[1722348353170,2.99697,3336.7,3336.0,0.15015257]
[1722348353640,2.99702,3336.7,3336.1,0.05994203]
[1722348354042,3.0,3337.3,3336.2,0.15006884]
[1722348354251,2.99706,3336.7,3336.2,0.15006884]
[1722348354425,3.54654,3337.2,3336.1,0.05994203]
[1722348354426,2.99707,3336.6,3336.1,0.05994203]
[1722348354630,2.99697,3336.7,3336.3,0.1500225]
[1722348354949,2.99697,3336.7,3336.1,0.05994203]
[1722348354950,2.99705,3336.7,3336.4,0.14998512]
[1722348355253,2.99706,3336.6,3336.0,0.05994206]
[1722348355453,2.99698,3336.7,3336.1,0.36873731]
[1722348355750,2.99698,3336.7,3336.2,0.1500539]
[1722348356051,2.9968,3336.9,3336.2,0.20999597]
[1722348356630,2.99684,3336.9,3336.2,0.20999597]
[1722348356828,2.99684,3336.9,3336.2,0.89348567]
[1722348357036,5.99371,3336.9,3336.2,0.89348567]
[1722348357382,2.99689,3336.8,3336.2,0.89174246]
[1722348358183,2.99713,3336.6,3336.2,0.20825276]
[1722348358350,2.99698,3336.7,3336.2,0.14831069]
[1722348358557,2.99706,3336.6,3336.0,0.05994212]
[1722348358718,2.99706,3336.6,3336.3,0.14826886]
[1722348358917,2.99706,3336.6,3335.7,3.301]
[1722348358918,2.99696,3336.8,3335.9,2.99769]
[1722348359170,2.99699,3336.7,3336.0,0.77792603]
[1722348359377,0.55,3337.2,3336.0,0.14805703]
[1722348359378,2.99751,3336.1,3336.0,0.14805703]
[1722348359667,2.99751,3336.1,3335.3,7.37]
[1722348359668,2.99742,3336.2,3335.4,5.3503]
[1722348359864,2.99734,3336.3,3335.5,2.99804]
[1722348360019,2.99719,3336.5,3335.6,3.832732]
[1722348360221,2.99719,3336.5,3335.7,2.99785]
[1722348360424,7.47,3337.0,3335.7,0.14357109]
[1722348360624,3.726,3336.9,3335.7,0.14357109]
[1722348360826,3.726,3336.9,3335.2,7.37]
[1722348360827,2.2872,3336.7,3335.2,7.37]
[1722348361072,2.99769,3335.9,3335.8,0.1435337]
[1722348361269,2.9981,3335.5,3334.9,2.415]
[1722348361438,2.9981,3335.5,3334.4,12.78399]
[1722348361926,2.99793,3335.7,3334.8,2.99866]
[1722348362128,2.99765,3336.0,3334.9,0.14387029]
[1722348362327,2.99765,3336.0,3335.0,2.99842]
[1722348362564,2.99776,3335.9,3335.1,0.599705]
[1722348362769,3.176,3336.4,3335.2,0.05995496]
[1722348362970,3.0,3336.3,3335.2,0.14375807]
[1722348363271,0.55,3336.2,3335.3,0.0599597]
[1722348363438,2.99769,3335.9,3335.2,0.14375807]
[1722348363627,5.02082836,3336.4,3335.4,0.14368327]
[1722348363828,1.08580284,3336.6,3335.3,0.05995859]
[1722348363829,1.08580284,3336.6,3335.5,0.0599535]
[1722348364062,2.99751,3336.1,3335.5,0.55472042]
[1722348364262,2.99751,3336.1,3335.6,0.2035595]
[1722348364536,8.28421,3336.7,3335.7,0.05995102]
[1722348364537,2.99701,3336.7,3335.7,0.05995102]
[1722348364674,2.99707,3336.6,3335.7,2.99781]
[1722348364875,2.99747,3336.2,3335.8,0.1435337]
[1722348365113,2.99747,3336.2,3335.5,0.55472042]
[1722348365313,2.99747,3336.2,3335.3,5.34346]
[1722348365520,2.99747,3336.2,3335.6,0.14360848]
[1722348365716,2.99739,3336.3,3335.7,0.14357109]
[1722348365873,2.99729,3336.4,3335.7,0.14357109]
[1722348365874,2.99748,3336.2,3335.7,0.14357109]
[1722348366078,2.99748,3336.2,3335.3,5.3435]
[1722348366079,12.49163384,3336.9,3335.8,0.1435337]
[1722348366418,12.49163384,3336.9,3335.5,2.99799]
[1722348366419,2.99716,3336.5,3335.6,2.9979]
[1722348366586,2.99706,3336.6,3335.7,3.597419]
[1722348366915,3.0,3336.8,3335.7,0.599589]
[1722348367085,2.99713,3336.6,3335.8,0.14362289]
[1722348367287,3.0,3336.9,3335.8,0.14362289]
[1722348367288,2.99732,3336.4,3335.8,0.14362289]
[1722348367486,6.17285,3336.9,3335.8,0.14362289]
[1722348367487,2.99708,3336.6,3335.8,0.14362289]
[1722348367900,2.99708,3336.6,3335.9,0.37411219]
[1722348368402,2.99693,3336.8,3336.0,0.20349044]
[1722348368797,2.99719,3336.5,3336.0,0.14354812]
[1722348368998,2.99665,3337.1,3336.0,0.14354812]
[1722348369304,2.99697,3336.7,3336.0,0.14354812]
[1722348369509,2.99715,3336.5,3336.1,0.35153703]
[1722348369710,2.99715,3336.5,3336.0,0.14354812]
[1722348369914,2.99733,3336.3,3336.1,0.14356127]
[1722348370119,2.99742,3336.2,3335.7,0.599589]
[1722348370300,2.99758,3336.1,3335.8,0.14367343]
[1722348370622,1.84709093,3336.7,3335.4,7.37]
[1722348370623,2.9978,3335.8,3335.4,7.37]
[1722348370827,2.9978,3335.8,3335.4,0.97153]
[1722348371047,2.9975,3336.2,3335.3,5.34345]
[1722348371329,15.07833942,3336.7,3335.3,5.34345]
[1722348371330,2.99715,3336.5,3335.5,5.99601]
[1722348371535,2.99715,3336.5,3335.5,2.99797]
[1722348371686,2.99698,3336.7,3335.6,0.05994498]
[1722348371890,2.99698,3336.7,3335.8,2.99771]
[1722348372089,2.99699,3336.7,3335.9,3.66318001]
[1722348372393,3.0,3337.1,3335.9,0.66550001]
[1722348372592,2.99707,3336.6,3335.9,0.66550001]
[1722348373177,2.99724,3336.4,3335.9,0.6055575]
[1722348373438,2.99683,3336.9,3336.0,2.99755]
[1722348373591,2.99692,3336.8,3336.0,2.99755]
[1722348373990,2.99692,3336.8,3335.9,2.99767]
[1722348374297,2.99701,3336.7,3335.9,2.99767]
[1722348374511,1.84871816,3337.2,3336.1,2.4629]
[1722348374704,2.99666,3337.1,3336.2,3.30963176]
[1722348374932,2.99652,3337.2,3336.3,3.05720751]
[1722348375133,2.99652,3337.2,3336.3,6.05446751]
[1722348375309,2.99675,3337.0,3336.4,0.87696518]
[1722348375642,2.99675,3337.0,3336.3,0.05993751]
[1722348375797,2.99652,3337.2,3336.3,0.05993751]
[1722348375997,2.99665,3337.1,3336.3,3.05721751]
[1722348376610,2.99671,3337.0,3336.3,0.05993751]
[1722348376808,2.99652,3337.2,3336.3,0.05993751]
[1722348376809,2.99667,3337.1,3336.3,0.05993751]
[1722348377113,2.99667,3337.1,3336.4,0.27751218]
[1722348377534,5.99337,3337.1,3336.4,0.27751218]
[1722348377732,2.99667,3337.1,3336.4,0.27751218]
[1722348379026,5.35804359,3337.5,3336.4,0.27751218]
[1722348379229,2.99667,3337.1,3336.4,0.27751218]
[1722348379416,5.99337,3337.1,3336.5,0.33347497]
[1722348379624,2.9967,3337.0,3336.5,0.4766608]
[1722348380521,5.99347,3337.0,3336.5,0.4766608]
[1722348380718,2.9967,3337.0,3336.5,0.4766608]
[1722348380972,1.85016346,3337.2,3336.5,0.14318583]
[1722348381114,5.99412,3336.6,3336.5,0.14318583]
[1722348381314,5.99412,3336.6,3336.1,2.4629]
[1722348381627,1.85016346,3336.9,3336.2,0.14303523]
[1722348381826,2.99685,3336.9,3336.2,0.14303523]
[1722348382026,2.99685,3336.9,3336.2,0.31405852]
[1722348382857,2.99663,3337.1,3336.3,3.20027089]
[1722348383023,2.99649,3337.3,3336.3,3.20027089]
[1722348383223,2.99667,3337.1,3336.3,3.20033089]
[1722348383436,2.99667,3337.1,3336.3,3.20029089]
[1722348383611,2.9967,3337.0,3336.4,0.35143494]
[1722348383814,2.9967,3337.0,3336.4,0.49441028]
[1722348384050,2.99667,3337.1,3336.4,0.49441028]
[1722348384051,2.99662,3337.1,3336.4,0.49441028]
[1722348384646,3.5086957,3337.5,3336.4,0.49441028]
[1722348384849,6.17034,3337.4,3336.1,2.99746]
[1722348385018,2.99667,3337.1,3336.2,3.05734767]
[1722348385215,5.99313,3337.2,3336.2,3.20028319]
[1722348385452,2.99653,3337.2,3336.4,2.99715]
[1722348385659,2.99653,3337.2,3336.5,0.32000932]
[1722348385825,2.99653,3337.2,3336.5,0.46290865]
[1722348386031,2.99665,3337.1,3336.5,0.46290865]
[1722348386942,5.99333,3337.1,3336.5,0.46290865]
[1722348387148,2.99674,3337.0,3336.5,0.46290865]
[1722348387622,2.99673,3337.0,3336.5,0.14289933]
[1722348388020,2.99661,3337.1,3336.3,2.99728]
[1722348388261,2.99661,3337.1,3336.6,0.14286196]
[1722348388422,2.9964,3337.4,3336.4,3.05710772]
[1722348388613,2.9964,3337.4,3336.7,0.14282459]
[1722348388818,2.99655,3337.2,3336.5,2.99714]
[1722348389055,2.99655,3337.2,3336.8,0.14278722]
[1722348389260,5.99315,3337.2,3336.6,0.60543277]
[1722348389430,2.99655,3337.2,3336.9,0.14274985]
[1722348389662,2.99655,3337.2,3336.6,2.99703277]
[1722348389860,2.9964,3337.4,3337.0,0.14271249]
[1722348390055,2.99652,3337.3,3336.6,2.99703277]
[1722348390261,2.99652,3337.3,3337.1,0.14267513]
[1722348390483,3.5086957,3337.5,3336.6,2.99703277]
[1722348390817,3.5049757,3337.5,3336.7,2.99691]
[1722348390949,3.5049757,3337.5,3336.7,3.13973459]
[1722348391889,3.5049757,3337.5,3336.7,2.99691]
[1722348392957,3.5049757,3337.5,3336.6,2.45153755]
[1722348392958,3.5049757,3337.5,3336.6,5.44858755]
[1722348393161,2.99636,3337.4,3336.7,0.9873299]
[1722348393402,2.99636,3337.4,3336.7,1.04726171]
[1722348393544,2.99636,3337.4,3336.7,4.04423171]
[1722348393745,3.5049457,3337.5,3336.7,4.04423171]
[1722348393990,3.5049457,3337.5,3336.8,0.94329217]
[1722348394304,3.5049457,3337.5,3336.8,1.08601696]
[1722348394611,3.5049457,3337.5,3336.8,4.08289696]
[1722348395019,2.99625,3337.5,3336.8,4.08289696]
[1722348395402,2.99613,3337.7,3336.8,4.08289696]
[1722348395586,2.99613,3337.7,3336.9,0.95314788]
[1722348395915,12.7559,3338.2,3337.0,3.05661185]
[1722348395916,2.99598,3337.8,3337.0,3.05661185]
[1722348396230,1.85187988,3338.1,3337.1,0.1426127]
[1722348396231,2.99581,3338.0,3337.1,0.1426127]
[1722348396437,2.99603,3337.8,3337.1,0.1426127]
[1722348396579,2.99614,3337.7,3337.0,0.05993185]
[1722348396780,2.99616,3337.6,3337.2,0.14257534]
[1722348397028,2.99616,3337.6,3337.1,0.54359567]
[1722348397233,5.99238,3337.6,3337.3,0.14253798]
[1722348397526,2.99616,3337.6,3337.2,0.14257534]
[1722348397833,2.99634,3337.4,3337.3,0.14253798]
[1722348398132,5.99268,3337.4,3337.3,0.14253798]
[1722348398412,2.99647,3337.3,3336.6,2.3916]
[1722348398724,2.99635,3337.4,3336.6,2.3916]
[1722348399042,2.99635,3337.4,3336.7,35.14258092]
[1722348399175,2.99626,3337.5,3336.8,3.04901288]
[1722348399601,2.99634,3337.4,3336.9,0.14259531]
[1722348399979,2.99634,3337.4,3337.0,35.0]
[1722348400389,2.99616,3337.6,3337.1,0.14252058]
[1722348400700,2.99626,3337.5,3337.1,0.14252058]
[1722348400877,2.9963,3337.5,3337.0,35.0]
[1722348401078,2.99613,3337.7,3337.2,0.14248322]
[1722348401079,2.99617,3337.6,3337.2,0.14248322]
[1722348401422,2.99617,3337.6,3337.1,3.04901288]
[1722348401423,2.99625,3337.5,3337.1,3.19153346]
[1722348401624,2.99625,3337.5,3337.3,0.14244587]